[Event "Silver Lake Festival 2022"]
[Site "Veliko Gradiste"]
[Date "2022.06.23"]
[Round "6.6"]
[White "Papaioannou, Dimitrios"]
[Black "Krstulovic, Alex"]
[Result "0-1"]
[ECO "B12"]
[WhiteElo "2078"]
[BlackElo "2413"]
[Annotator "TA"]
[PlyCount "78"]
[EventDate "2022.06.16"]
[EventType "swiss"]
[EventCountry "SRB"]
[SourceTitle "playchess.com"]
[Source "ChessBase"]
[SourceQuality "1"]
[TimeControl "5400+30"]

{[%evp 9,78,22,22,20,16,25,40,31,27,0,49,0,25,0,28,38,29,-54,-50,-30,0,-83,-80,-89,-81,-93,-106,-95,-84,-91,-70,-244,-245,-245,-235,-377,-378,-377,-370,-414,-281,-264,-260,-229,0,-186,0,-234,-234,-234,-234,-247,-237,-406,-412,-638,-325,-693,-512,-1044,-1068,-1556,-1501,-1362,-1312,-1170,-1008,-1887,-1889,-5320,-749]} 1. e4 {[%emt 0:01:49]} c6 {[%emt 0:00:04]} 2. d4 {[%emt 0:01:27]} d5 {[%emt 0:00:04]} 3. e5 {[%emt 0:00:19]} c5 {[%emt 0:00:04]} 4. Nf3 {[%emt 0:00:06]} Nc6 {[%emt 0:01:52]} 5. c4 {[%emt 0:01:30]} cxd4 {[%emt 0:00:50]} 6. Nxd4 {[%emt 0:00:09] B12: Caro-Kann: Advance Variation.} e6 {[%emt 0:02:35]} 7. Nc3 {[%emt 0:01:22]} Bc5 {[%emt 0:07:54]} 8. Nxc6 {[%emt 0:02:05] White is slightly better.} bxc6 {[%emt 0:00:03]} 9. Qg4 {[%emt 0:01:44]} Kf8 {[%emt 0:22:29] [#]} (9... Ne7 $11 {deserves consideration.}) 10. Qg3 $146 {[%emt 0:13:52]} (10. Bd3 $1 $14 {feels stronger.}) ({Predecessor:} 10. Bd3 Ne7 11. O-O Ng6 12. Re1 Qh4 13. Qxh4 Nxh4 14. Bd2 Ng6 15. Na4 Be7 16. cxd5 cxd5 {1-0 (26) Najer,E (2653)-Yevseev,D (2580) Sochi 2006}) 10... Ne7 {[%emt 0:01:41]} 11. cxd5 {[%emt 0:12:08]} exd5 {[%emt 0:08:42]} 12. Bd3 $1 {[%emt 0:09:49]} Nf5 {[%emt 0:11:45]} 13. Qg5 {[%emt 0:04:08]} (13. Bxf5 $11 Bxf5 14. O-O) 13... Qxg5 $15 {[%emt 0:06:31]} 14. Bxg5 {[%emt 0:00:13]} Rb8 {[%emt 0:14:09]} 15. Rc1 {[%emt 0:12:20]} (15. Na4 $11 {remains equal.} Bb4+ 16. Kf1) 15... Rxb2 $17 {[%emt 0:12:35]} 16. Nd1 {[%emt 0:03:14]} Bb4+ {[%emt 0:00:42]} 17. Kf1 {[%emt 0:00:02]} Rxa2 {[%emt 0:00:10] Black is more active.} 18. Rxc6 {[%emt 0:00:16][%cal Rc6c8] [#]} Be6 $36 {[%emt 0:00:31][%mdl 2048] White is under strong pressure.} 19. Rc7 {[%emt 0:14:10]} h6 {[%emt 0:02:07]} 20. Rb7 $2 {[%emt 0:02:38]} ({White should try} 20. g4 $15 Ne7 21. Bxe7+ Bxe7 22. Bf5) 20... hxg5 $19 {[%emt 0:00:07]} 21. Rxb4 {[%emt 0:01:45] Strongly threatening Rb8+.} g6 {[%emt 0:00:59][%cal Bg7g6,Bg6f5][%mdl 32]} 22. Bxf5 {[%emt 0:03:09]} (22. Bb1 {was called for.} Ra1 23. Ke2) 22... gxf5 {[%emt 0:01:30]} ({But not} 22... Bxf5 $2 23. Rb2 Ra1 24. Rd2 $19) 23. h4 {[%emt 0:06:46]} Kg7 {[%emt 0:00:04]} 24. g3 {[%emt 0:00:57]} Rd2 {[%emt 0:03:44]} 25. Ke1 {[%emt 0:00:12]} Rc2 {[%emt 0:00:34]} 26. Kf1 {[%emt 0:00:02]} Rd2 {[%emt 0:00:54]} 27. Ke1 {[%emt 0:00:01]} Rc2 {[%emt 0:00:13]} (27... a5 $142 {White must now prevent ...Rxd1+.} 28. Kxd2 axb4) 28. Kf1 $1 {[%emt 0:00:01]} g4 {[%emt 0:01:01]} 29. Rd4 {[%emt 0:01:26]} Rb8 {[%emt 0:00:17]} 30. Kg2 {[%emt 0:00:50]} Re2 {[%emt 0:00:16]} 31. Rf1 $2 {[%emt 0:03:05]} (31. Nc3 Rxe5 32. Rhd1) 31... Rb3 {[%emt 0:00:42]} 32. Ra4 {[%emt 0:01:57]} (32. Kg1 $142 Re4 33. Rxe4 fxe4 34. Ne3) 32... Rxe5 {[%emt 0:00:05]} 33. Rxa7 $2 {[%emt 0:00:59]} (33. Ne3) 33... d4 {[%emt 0:00:06] [#] aiming for ...Re2. Black is clearly winning.} 34. Kh2 {[%emt 0:01:12]} (34. Ra4 $142 Re4 35. Rg1) 34... Re2 {[%emt 0:01:22] ...Rd3 is the strong threat.} 35. Ra5 {[%emt 0:00:42]} Rd2 {[%emt 0:00:43]} 36. Kg2 {[%emt 0:00:46]} Kf6 {[%emt 0:00:27]} 37. Rc5 {[%emt 0:00:28]} Bd7 {[%emt 0:00:27] Hoping for ...Bb5.} 38. Rc7 {[%emt 0:01:18]} Bb5 {[%emt 0:00:07]} 39. Re1 {[%emt 0:00:30]} Be2 {[%emt 0:00:07] Weighted Error Value: White=0.82/Black=0.37} (39... Rb1 $142 40. Rc8 Rdxd1 41. Rxd1 Rxd1) 0-1

[Event "Silver Lake Festival 2022"]
[Site "Veliko Gradiste"]
[Date "2022.06.23"]
[Round "6.7"]
[White "Creanga, Robert-Ionut"]
[Black "Ramoutar, Alan-Safar"]
[Result "0-1"]
[ECO "D45"]
[WhiteElo "2201"]
[BlackElo "2477"]
[Annotator "TA"]
[PlyCount "56"]
[EventDate "2022.06.16"]
[EventType "swiss"]
[EventCountry "SRB"]
[SourceTitle "playchess.com"]
[Source "ChessBase"]
[SourceQuality "1"]
[TimeControl "5400+30"]

{[%evp 13,56,14,14,0,17,0,0,0,0,0,0,0,0,0,0,0,0,-57,-56,-233,-239,-229,-71,-67,-77,-57,-78,-74,-77,-76,49,42,143,133,148,0,0,0,0,-29986,-29987,-29988,-29989,-29988,-29988]} 1. d4 {[%emt 0:00:17]} d5 {[%emt 0:00:29]} 2. c4 {[%emt 0:00:18]} e6 {[%emt 0:00:17]} 3. Nf3 {[%emt 0:00:45]} Nf6 {[%emt 0:00:28]} 4. Nc3 {[%emt 0:00:48]} c6 {[%emt 0:00:11]} 5. e3 {[%emt 0:02:37]} a6 {[%emt 0:00:10]} 6. Qc2 {[%emt 0:04:06]} c5 {[%emt 0:00:15]} 7. cxd5 {[%emt 0:05:56]} exd5 {[%emt 0:00:13]} 8. dxc5 {[%emt 0:10:17] D45: Semi-Slav: 5 e3.} Bxc5 {[%emt 0:00:18]} 9. a3 {[%emt 0:04:33]} O-O {[%emt 0:00:31]} 10. Bd3 {[%emt 0:03:00] The position is equal.} Nc6 {[%emt 0:00:32] [#]} 11. h3 $146 {[%emt 0:07:58]} ({Predecessor:} 11. Ne2 Qe7 12. h3 Bd6 13. O-O Ne5 14. Ned4 Nxd3 15. Qxd3 Ne4 16. b3 Qf6 17. Rd1 {½-½ (30) Obgolts,E (2417)-Grebnev,A (2373) Sochi 2021}) 11... Be6 {[%emt 0:03:11]} 12. Ne2 {[%emt 0:06:43]} Ba7 {[%emt 0:09:53]} 13. b4 {[%emt 0:06:03]} Rc8 {[%emt 0:00:28][%cal Oc6b4] ...Nxb4! is the strong threat.} 14. Qb1 {[%emt 0:03:49]} d4 {[%emt 0:08:29]} 15. e4 {[%emt 0:12:17] Prevents Bd5.} ({White should try} 15. Nexd4 $11 Bxd4 16. Nxd4) 15... Nd7 $15 {[%emt 0:11:50]} 16. Ng5 $2 {[%emt 0:06:07]} (16. Bf4 $15) 16... Nce5 $19 {[%emt 0:00:59]} 17. Nxe6 {[%emt 0:01:17]} Nxd3+ $2 {[%emt 0:00:36]} (17... fxe6 $19 {has better winning chances.} 18. O-O Nxd3 19. Qxd3 Ne5) 18. Qxd3 $17 {[%emt 0:00:18]} Ne5 {[%emt 0:29:34]} 19. Qg3 {[%emt 0:04:21][%csl Ge6][%cal Rg3g7]} (19. Nxd8 $2 Nxd3+ 20. Kf1 (20. Kd2 $2 Nxf2 21. Nxb7 Nxe4+ 22. Ke1 Rfe8 $19) 20... Rfxd8 $19) 19... fxe6 {[%emt 0:00:06]} 20. Qxe5 {[%emt 0:04:25] Threatens to win with 0-0.} d3 $1 {[%emt 0:00:06][%csl LRe2,LRf2]} 21. Nf4 {[%emt 0:05:27]} Rf6 {[%emt 0:17:01]} (21... Bd4 $1 $17 {[%cal Rd4e5]} 22. Qxe6+ Kh8) 22. Be3 $14 {[%emt 0:01:56]} (22. Nxe6 $2 Bxf2+ 23. Kd2 (23. Kd1 $2 Qe8 $19) 23... Rc2+ 24. Kd1 Qe8 $19) 22... Bb8 {[%emt 0:03:12]} (22... d2+ $1 $14 23. Ke2 (23. Bxd2 Bd4 $15) 23... Bb8) 23. Qg5 $16 {[%emt 0:00:38] aiming for 0-0.} d2+ {[%emt 0:02:09]} 24. Ke2 {[%emt 0:01:07]} ({White has to play} 24. Bxd2 $16 Qxd2+ 25. Kxd2 Bxf4+ 26. Qxf4 $3 {[%mdl 512]} Rxf4 27. Ke3) 24... Bxf4 $11 {[%emt 0:01:29]} 25. Bxf4 {[%emt 0:00:15]} Qd4 $40 {[%emt 0:02:03][%mdl 128] Hoping for ...Rc2. Black is up to no good. Dancing on a razor blade.} 26. Qe5 $2 {[%emt 0:03:38][%mdl 8192]} ({Reject} 26. f3 Rg6 27. Qxg6 hxg6 $17) (26. Rhd1 $11 Qc4+ 27. Kxd2 Qxe4 {[#]} 28. Rac1 $1 Rxc1 29. Rxc1 (29. Kxc1 Rxf4 30. Rd8+ Rf8 $11) 29... Rxf4 30. Rc8+ Rf8 31. Rxf8+ Kxf8 32. Qc5+ Kf7 33. Qc7+ Kf6 34. Qc3+ e5 35. g3) 26... d1=Q+ $1 {[%emt 0:01:20] Black mates.} 27. Raxd1 {[%emt 0:01:39]} Rc2+ {[%emt 0:00:02]} 28. Kf3 {[%emt 0:00:23]} Qxe5 {[%emt 0:00:55] Quite a comeback for Black.  Weighted Error Value: White=0.58/Black=0.24 (precise)} 0-1

[Event "Silver Lake Festival 2022"]
[Site "Veliko Gradiste"]
[Date "2022.06.23"]
[Round "6.8"]
[White "Tyurin, Artem"]
[Black "Radovanovic, Nikola"]
[Result "0-1"]
[ECO "E90"]
[WhiteElo "2174"]
[BlackElo "2423"]
[Annotator "TA"]
[PlyCount "76"]
[EventDate "2022.06.16"]
[EventType "swiss"]
[EventCountry "SRB"]
[SourceTitle "playchess.com"]
[Source "ChessBase"]
[SourceQuality "1"]
[TimeControl "5400+30"]

{[%evp 16,76,12,35,11,29,25,37,42,14,18,15,40,-15,-14,-26,-17,-26,-8,-81,-76,-73,-84,-263,-236,-291,-292,-277,-280,-407,-368,-363,-243,-379,-321,-404,-125,-122,-128,-122,-118,-121,-133,-197,-214,-169,-167,-177,-170,-272,-272,-286,-266,-757,-367,-487,-468,-450,-247,-135,-181,-1024,-985]} 1. c4 {[%emt 0:00:02]} Nf6 {[%emt 0:04:23]} 2. Nc3 {[%emt 0:00:05]} g6 {[%emt 0:00:07]} 3. e4 {[%emt 0:00:03]} d6 {[%emt 0:00:07]} 4. d4 {[%emt 0:00:03]} Bg7 {[%emt 0:00:10]} 5. Nf3 {[%emt 0:00:03]} O-O {[%emt 0:00:09]} 6. h3 {[%emt 0:00:02]} e5 {[%emt 0:00:14]} 7. d5 {[%emt 0:00:03]} a5 {[%emt 0:00:18]} 8. Be3 {[%emt 0:00:05]} Na6 {[%emt 0:00:15]} 9. g4 {[%emt 0:00:05]} Nd7 {[%emt 0:00:33] E90: King's Indian: Classical: Early deviations and 6 h3.} 10. a3 {[%emt 0:00:16]} Nb6 {[%emt 0:03:15]} 11. Rg1 {[%emt 0:01:20]} Bd7 {[%emt 0:05:34] White is slightly better. 11...Kh8 injects fresh life into this line.} 12. Nd2 {[%emt 0:04:11]} Nc5 {[%emt 0:04:34]} 13. b3 {[%emt 0:11:31]} c6 {[%emt 0:13:41]} 14. Be2 {[%emt 0:10:25]} (14. b4 $14 Na6 15. bxa5) 14... Kh8 $11 {[%emt 0:06:03] [#]} 15. h4 $146 {[%emt 1:09:46]} ({Predecessor:} 15. b4 Nca4 16. Nxa4 Nxa4 17. Rc1 axb4 18. axb4 f5 19. gxf5 gxf5 20. exf5 Bxf5 21. Qb3 {½-½ (47) Meskovs,N (2550)-Zwirs,N (2380) Amsterdam 2019}) 15... cxd5 {[%emt 0:08:41]} (15... Qxh4 {is more complex.} 16. g5 cxd5 17. Nf3 Qh3) 16. cxd5 {[%emt 0:00:00]} f5 {[%emt 0:04:15]} 17. h5 {[%emt 0:00:00]} (17. exf5 $11 {keeps the balance.} gxf5 18. gxf5) 17... fxg4 $17 {[%emt 0:20:47]} 18. hxg6 {[%emt 0:00:00]} Qh4 {[%emt 0:01:17] Prevents Rh1.} 19. Qc2 $2 {[%emt 0:00:00]} (19. Bb5 $17 Qh2 20. Ke2) 19... Bh6 $19 {[%emt 0:01:04]} (19... hxg6 20. O-O-O Kg8 21. Kb1 $16) 20. O-O-O {[%emt 0:00:00]} Bxe3 {[%emt 0:00:21]} (20... hxg6 $2 21. Rh1 Qf6 22. Bxh6 $18) 21. fxe3 {[%emt 0:00:00]} h5 {[%emt 0:01:39]} (21... Rf2 22. Rh1 Rh2 23. Rxh2 Qxh2 24. Kb2 $17) 22. Nf1 {[%emt 0:00:00]} (22. Kb1 $142) 22... Kg7 {[%emt 0:04:49][%cal Bh8g7,Bg7g6,Bg6f6,Bf6e7][%mdl 32]} 23. Ng3 {[%emt 0:00:00]} Qg5 {[%emt 0:00:25] Threatens to win with ...h4.} ({Don't go for} 23... Kxg6 $2 24. Bb5 $19) 24. Kb2 {[%emt 0:00:00]} (24. Kb1 {was the only chance.}) 24... Kxg6 {[%emt 0:06:46] Strongly threatening ...Rac8.} 25. Rh1 {[%emt 0:00:00]} Rh8 {[%emt 0:04:10]} (25... Qxe3 $19 {has better winning chances.} 26. Nf5 Rxf5 27. exf5+ Bxf5) 26. Bb5 $17 {[%emt 0:01:00]} Qxe3 {[%emt 0:07:46] Active counter play!} 27. Bxd7 {[%emt 0:00:25]} Qxg3 {[%emt 0:00:41]} ({Reject} 27... Nbxd7 $6 28. Nf5 Qg5 29. Nb5 $15) 28. Bf5+ {[%emt 0:00:03]} Kf6 {[%emt 0:00:33] aiming for ...a4.} 29. Rhg1 {[%emt 0:03:39]} (29. Rdf1 $17) 29... Qe3 $1 $19 {[%emt 0:00:18]} 30. Rge1 {[%emt 0:00:10]} Qg5 {[%emt 0:01:08]} 31. Nb5 {[%emt 0:00:12]} Ke7 {[%emt 0:00:27]} 32. Rc1 {[%emt 0:01:23] [#]} (32. Qe2 {is a better defense.}) 32... Rac8 $1 {[%emt 0:00:35][%cal Oc5a4] ...Nca4+! is the strong threat.} 33. Qe2 {[%emt 0:01:00] [#]} g3 $1 {[%emt 0:00:56][%cal Oh5h4] And now ...h4! would win.} 34. Rf1 $2 {[%emt 0:00:58] [#]} (34. Red1) (34. Rg1 Ncd7) 34... h4 $1 {[%emt 0:00:31]} 35. Bxc8 {[%emt 0:00:28]} (35. Bh3 g2) 35... Rxc8 {[%emt 0:00:05]} 36. Qf3 {[%emt 0:00:24] Qf7+ would kill now.} Qd2+ {[%emt 0:01:08]} (36... Qf4 $142 37. Qe2 Qg5) 37. Rc2 {[%emt 0:00:42] Threatening mate with Qf6+.} Qf4 {[%emt 0:00:37] Inhibits Qf6+. Dancing on a razor blade.} (37... Nd3+ $2 38. Ka1 Qe1+ 39. Rxe1 $18) 38. Qxf4 {[%emt 0:00:33]} (38. Qe2 Qg5 39. b4 (39. Qf3 $2 Qg6 $19) 39... axb4 40. axb4) 38... Nd3+ {[%emt 0:00:32] Weighted Error Value: White=0.63/Black=0.43} 0-1

[Event "Silver Lake Festival 2022"]
[Site "Veliko Gradiste"]
[Date "2022.06.23"]
[Round "6.9"]
[White "Tadic, Stefan"]
[Black "Petrovic, Dragan R"]
[Result "0-1"]
[ECO "B30"]
[WhiteElo "2358"]
[BlackElo "2143"]
[Annotator "TA"]
[PlyCount "102"]
[EventDate "2022.06.16"]
[EventType "swiss"]
[EventCountry "SRB"]
[SourceTitle "playchess.com"]
[Source "ChessBase"]
[SourceQuality "1"]
[TimeControl "5400+30"]

{[%evp 15,102,-1,7,-15,-9,-8,0,-32,0,0,33,30,30,30,44,30,39,39,55,37,56,44,64,52,64,63,66,60,91,68,111,91,118,0,0,0,0,0,0,-15,0,0,0,-55,-33,-36,-28,-32,-12,-166,-114,-256,-246,-598,-594,-590,-574,-845,-614,-583,-638,-612,-647,-643,-630,-582,-604,-1035,-1042,-1026,-1009,-992,-964,-1160,-1126,-979,-860,-858,-870,-842,-845,-758,-636,-600,-595,-1436,-1397,-1246,-1227]} 1. e4 {[%emt 0:00:08]} c5 {[%emt 0:10:34]} 2. Nf3 {[%emt 0:00:07]} e6 {[%emt 0:00:53]} 3. d3 {[%emt 0:02:10]} Nc6 {[%emt 0:00:55]} 4. g3 {[%emt 0:00:11]} d6 {[%emt 0:03:51]} 5. Bg2 {[%emt 0:00:09]} Nf6 {[%emt 0:00:03]} 6. O-O {[%emt 0:00:08]} Be7 {[%emt 0:00:06]} 7. c3 {[%emt 0:02:58]} O-O {[%emt 0:02:00]} 8. Re1 {[%emt 0:04:19]} e5 {[%emt 0:03:48]} 9. h3 {[%emt 0:09:44] B30: Sicilian: 2...Nc6 3 Bb5, lines without ...g6.} h6 {[%emt 0:02:24] [#]} 10. Nh4 $146 {[%emt 0:20:36]} ({Predecessor:} 10. d4 Re8 11. dxe5 dxe5 12. Qe2 Bf8 13. a4 b6 14. Na3 Na5 15. Nd2 Bb7 16. Nac4 Ba6 {½-½ (68) Perez,M (2417)-Kamsky,G (2674) Chess.com INT 2020}) 10... Re8 {[%emt 0:02:55]} 11. Qf3 {[%emt 0:02:07] The position is equal.} Bf8 {[%emt 0:03:13]} 12. Nf5 {[%emt 0:03:54]} Bxf5 {[%emt 0:02:29]} 13. Qxf5 {[%emt 0:00:28]} g6 {[%emt 0:01:07]} 14. Qf3 {[%emt 0:00:05]} Bg7 {[%emt 0:00:05]} 15. Na3 {[%emt 0:03:04]} Nh7 {[%emt 0:09:27]} 16. Nc2 {[%emt 0:09:38]} Qd7 {[%emt 0:02:19]} 17. Kh2 {[%emt 0:05:28]} Rf8 {[%emt 0:03:16]} 18. h4 {[%emt 0:10:12]} Ne7 {[%emt 0:04:30]} 19. Ne3 {[%emt 0:06:14]} Qc6 {[%emt 0:08:01]} 20. Qd1 {[%emt 0:03:04]} Rab8 {[%emt 0:04:10]} 21. a4 {[%emt 0:00:24]} Qa6 {[%emt 0:02:02]} 22. Ra3 {[%emt 0:05:28]} Kh8 {[%emt 0:04:32]} 23. Nc4 {[%emt 0:04:47]} Rbd8 {[%emt 0:06:59]} 24. f4 {[%emt 0:02:49]} ({Better is} 24. b4 $16 {Threatens to win with b5.} Qc6 25. Kg1) 24... exf4 $11 {[%emt 0:05:41]} 25. Bxf4 {[%emt 0:01:11]} d5 $1 {[%emt 0:02:39]} 26. exd5 {[%emt 0:00:46]} Nxd5 {[%emt 0:00:10]} 27. Bc1 {[%emt 0:00:19]} Nhf6 {[%emt 0:02:15]} 28. Qf3 {[%emt 0:00:05]} Rfe8 {[%emt 0:03:00]} 29. Ne5 {[%emt 0:01:44]} (29. Rxe8+ $11 Rxe8 30. Bd2) 29... Kg8 {[%emt 0:03:26] ...h5 is the strong threat.} 30. d4 $1 {[%emt 0:00:23]} cxd4 {[%emt 0:00:57]} 31. cxd4 {[%emt 0:00:01]} Nb4 {[%emt 0:01:10] And now ...Nc2 would win. Pair of Knights!} 32. Qb3 {[%emt 0:02:26] Prevents Nc2. White is on the road to losing.} (32. Bf1 $11 Qe6 33. Bc4 Ng4+ 34. Nxg4 Qxc4 35. Rc3 Qxd4 36. Rxe8+ Rxe8 37. Bxh6) 32... Ng4+ $1 $19 {[%emt 0:02:57]} 33. Nxg4 {[%emt 0:00:02]} (33. Kh1 $17 Bxe5 34. dxe5) 33... Rxe1 {[%emt 0:00:07]} 34. Bd2 {[%emt 0:00:01] [#]} (34. Bxh6 Rxd4 35. Qc3) 34... Re2 $1 {[%emt 0:00:36] Black is clearly winning.} 35. Bxb4 {[%emt 0:00:52]} Rxd4 {[%emt 0:00:47]} 36. Ne3 {[%emt 0:01:43] [#]} Rxb2 $3 {[%emt 0:01:31][%mdl 512]} 37. Qxb2 {[%emt 0:00:15] [#]} Rxh4+ $3 {[%emt 0:00:04][%mdl 576] Discovered Attack} 38. gxh4 {[%emt 0:00:02]} Bxb2 {[%emt 0:00:07]} 39. Rb3 {[%emt 0:01:10]} Be5+ {[%emt 0:00:45]} 40. Kh1 {[%emt 0:00:00]} Qe2 {[%emt 0:01:25]} 41. a5 {[%emt 0:00:53]} Bd4 {[%emt 0:01:25] Against Bc5} 42. Nf1 {[%emt 0:00:13]} Qf2 {[%emt 0:00:09][%csl Gd4][%cal Rf2g1]} 43. Kh2 {[%emt 0:00:20]} Qxh4+ {[%emt 0:00:22]} 44. Bh3 {[%emt 0:00:04]} Qf2+ {[%emt 0:00:42]} 45. Bg2 {[%emt 0:00:03]} Be5+ {[%emt 0:00:16]} 46. Kh1 {[%emt 0:01:07]} Qh4+ {[%emt 0:00:29]} 47. Bh3 {[%emt 0:00:00]} g5 {[%emt 0:01:00][%cal Bg6g5,Bg5g4][%mdl 32] Hoping for ...g4.} 48. Re3 {[%emt 0:00:56]} f6 {[%emt 0:01:19] aiming for ...g4.} 49. Be1 {[%emt 0:00:05]} Qh5 {[%emt 0:00:27] White must now prevent ...g4.} 50. Bc3 {[%emt 0:01:49]} Bf4 {[%emt 0:01:12]} 51. Rd3 {[%emt 0:00:02]} g4 {[%emt 0:00:24] Weighted Error Value: White=0.63/Black=0.17 (very precise)} 0-1

[Event "Silver Lake Festival 2022"]
[Site "Veliko Gradiste"]
[Date "2022.06.23"]
[Round "6.10"]
[White "Markovic, Zoran S"]
[Black "Shoshin, Kirill"]
[Result "1/2-1/2"]
[ECO "B12"]
[WhiteElo "2313"]
[BlackElo "1938"]
[Annotator "ChessBase"]
[PlyCount "29"]
[EventDate "2022.06.16"]
[EventType "swiss"]
[EventCountry "SRB"]
[SourceTitle "playchess.com"]
[Source "ChessBase"]
[SourceQuality "1"]
[TimeControl "5400+30"]

1. e4 {[%emt 0:00:02]} c6 {[%emt 0:01:22]} 2. d4 {[%emt 0:00:13]} d5 {[%emt 0:00:04]} 3. e5 {[%emt 0:00:12]} Bf5 {[%emt 0:00:11]} 4. Nc3 {[%emt 0:00:07]} e6 {[%emt 0:00:10]} 5. g4 {[%emt 0:00:18]} Bg6 {[%emt 0:00:05]} 6. Nge2 {[%emt 0:00:12]} c5 {[%emt 0:00:34]} 7. h4 {[%emt 0:00:22]} h5 {[%emt 0:00:08]} 8. Nf4 {[%emt 0:00:39]} Bh7 {[%emt 0:00:08]} 9. Nxh5 {[%emt 0:03:16]} Nc6 {[%emt 0:00:16]} 10. dxc5 {[%emt 0:00:32]} Bxc5 {[%emt 0:00:24]} 11. Bb5 {[%emt 0:03:21]} Qc7 {[%emt 0:00:42]} 12. Bxc6+ {[%emt 0:00:54]} Qxc6 {[%emt 0:00:03]} 13. Qf3 {[%emt 0:01:14]} O-O-O {[%emt 0:02:39]} 14. Nxg7 {[%emt 0:06:50]} Ne7 {[%emt 0:04:57]} 15. Bg5 {[%emt 0:07:26]} 1/2-1/2

[Event "Silver Lake Festival 2022"]
[Site "Veliko Gradiste"]
[Date "2022.06.23"]
[Round "6.11"]
[White "Efremov, Vladislav"]
[Black "Lazic, Emanuel"]
[Result "1/2-1/2"]
[ECO "A54"]
[WhiteElo "2125"]
[BlackElo "2185"]
[Annotator "TA"]
[PlyCount "49"]
[EventDate "2022.06.16"]
[EventType "swiss"]
[EventCountry "SRB"]
[SourceTitle "playchess.com"]
[Source "ChessBase"]
[SourceQuality "1"]
[TimeControl "5400+30"]

{[%evp 14,49,24,14,67,63,250,256,256,256,249,246,254,228,283,154,153,163,188,79,86,69,76,75,81,45,53,53,52,33,35,70,55,30,28,0,54,0]} 1. d4 {[%emt 0:00:16]} Nf6 {[%emt 0:00:20]} 2. c4 {[%emt 0:00:05]} d6 {[%emt 0:00:09]} 3. Nf3 {[%emt 0:00:20]} Nbd7 {[%emt 0:00:10]} 4. Nc3 {[%emt 0:00:07]} e5 {[%emt 0:00:31]} 5. Bg5 {[%emt 0:01:54]} Be7 {[%emt 0:03:47]} 6. Qc2 {[%emt 0:01:09]} O-O {[%emt 0:03:27]} 7. e3 {[%emt 0:08:21]} c6 {[%emt 0:04:20]} 8. O-O-O {[%emt 0:00:24]} Ne8 {[%emt 0:05:46] A54: Old Indian Defence with Nf3, but without e4.} (8... h6 $11 9. Bh4 exd4 10. Nxd4 Nc5) 9. h4 $14 {[%emt 0:04:26] [#] Strongly threatening dxe5. 0x0.00207b530d4ddp-1022s more active pieces.} Bxg5 $146 {[%emt 0:09:43]} (9... exd4 $1 $14 10. Nxd4 Ne5) ({Predecessor:} 9... f6 10. Bd3 h6 11. Bxh6 gxh6 12. Bh7+ Kh8 13. Qg6 Nc7 14. Bg8 Rf7 15. Bxf7 Qf8 16. Rh3 Nb6 17. Rg3 Be6 18. Bxe6 Nxe6 19. dxe5 Nxc4 20. Qg4 b5 21. Qxe6 dxe5 22. Rd7 {1-0 (22) Mekhitarian,K (2498)-Fontoura,R (1983) Sete Lagoas 2011}) 10. hxg5 $18 {[%emt 0:01:30][%csl Gh1][%cal Rc2h7]} (10. Nxg5 Nef6 $11) 10... g6 {[%emt 0:04:38] White has a decisive advantage.} 11. dxe5 {[%emt 0:03:47]} dxe5 {[%emt 0:01:20]} 12. Qe4 {[%emt 0:03:57] Hoping for Qh4.} ({Don't take} 12. Nxe5 $6 Qe7 $16) 12... Qe7 {[%emt 0:09:02] [#]} 13. Qh4 $1 {[%emt 0:11:35][%csl Gh1][%cal Rh4h7]} f5 {[%emt 0:02:10]} 14. gxf6 {[%emt 0:01:40]} ({White has to play} 14. c5 $1 $18 e4 15. Nd4) 14... Nexf6 $16 {[%emt 0:02:07]} 15. Ne4 {[%emt 0:02:03][%cal Oc4c5] Threatens to win with c5!} Rf7 {[%emt 0:03:45] [#]} 16. Bd3 {[%emt 0:11:39]} (16. Nfg5 $1 $18 {and White stays clearly on top.} Nxe4 17. Nxf7 (17. Nxe4 Qxh4 18. Rxh4 Nf6 $16) 17... Qxh4 18. Rxh4) 16... Nxe4 {[%emt 0:04:19]} 17. Bxe4 {[%emt 0:00:20]} Qxh4 {[%emt 0:02:46]} 18. Rxh4 {[%emt 0:00:03]} Re7 {[%emt 0:06:20]} 19. Ng5 {[%emt 0:09:18]} Nf6 $1 {[%emt 0:06:33]} 20. Rd6 {[%emt 0:08:11]} Kg7 {[%emt 0:02:11]} 21. Bc2 {[%emt 0:03:33][%cal Og5h7]} Bf5 {[%emt 0:08:25]} 22. Bxf5 {[%emt 0:07:47]} gxf5 {[%emt 0:00:17]} 23. Ne6+ {[%emt 0:00:27]} (23. Rh3 $5 {[%cal Rh3g3]}) 23... Kf7 {[%emt 0:02:40]} 24. Ng5+ {[%emt 0:01:20]} Kg7 {[%emt 0:00:07]} 25. Ne6+ {[%emt 0:00:08] White really could win this.  Weighted Error Value: White=0.21 (precise) /Black=0.16 (very precise)} ({White should play} 25. Rh3 $14) 1/2-1/2